bitfinex/quotes_SOLUSD_20250721
["timestamp","ask_amount","ask_price","bid_price","bid_amount"]
[1753117296742,37.59421135,195.15,195.12,0.66]
[1753117297034,37.59421135,195.15,195.11,0.66]
[1753117297653,48.89966927,195.15,195.09,0.66]
[1753117297825,48.89966927,195.15,195.09,16.37129494]
[1753117297826,48.17966927,195.15,195.09,16.37129494]
[1753117298146,53.30394004,195.15,195.09,16.37129494]
[1753117298350,48.17966927,195.15,195.09,16.37129494]
[1753117299339,11.30545792,195.14,195.08,15.71151404]
[1753117299541,0.51421135,195.13,195.08,10.58545792]
[1753117299745,37.08,195.12,195.07,10.58545792]
[1753117299953,37.08,195.12,195.08,10.58545792]
[1753117300252,37.8,195.12,195.06,5.12662735]
[1753117300454,37.8,195.12,195.07,10.58545792]
[1753117300751,37.8,195.12,195.07,11.24545792]
[1753117301261,0.51421135,195.11,195.06,10.58545792]
[1753117301454,0.51421135,195.11,195.05,5.15679151]
[1753117301748,0.51421135,195.11,195.07,10.58545792]
[1753117302131,0.51421135,195.11,195.07,11.24545792]
[1753117303124,48.17966927,195.12,195.06,10.58545792]
[1753117303429,10.58545792,195.11,195.06,10.58545792]
[1753117303634,0.51421135,195.1,195.06,11.24545792]
[1753117303843,37.08,195.09,195.06,0.66]
[1753117304240,37.08,195.09,195.07,10.58545792]
[1753117304440,37.08,195.09,195.07,11.24545792]
[1753117305225,37.08,195.09,195.07,0.66]
[1753117305428,37.08,195.09,195.05,0.03]
[1753117305629,10.58545792,195.06,195.05,0.03]
[1753117305844,47.66545792,195.06,195.05,0.03]
[1753117306252,48.38545792,195.06,195.05,0.03]
[1753117306457,48.89966927,195.06,195.05,0.03]
[1753117306955,54.02629697,195.06,195.05,0.03]
[1753117307164,70.81098094,195.06,195.05,0.03]
[1753117308324,11.81966927,195.06,195.05,0.03]
[1753117308529,73.66545792,195.06,195.05,0.03]
[1753117308730,74.17966927,195.06,195.05,0.03]
[1753117308955,0.51421135,195.08,195.05,0.03]
[1753117309156,37.08,195.07,195.05,0.69]
[1753117309455,37.08,195.07,195.05,0.03]
[1753117309760,11.81966927,195.06,195.05,0.03]
[1753117309936,11.09966927,195.06,195.05,0.03]
[1753117310558,11.81966927,195.06,195.05,0.03]
[1753117310860,16.94629697,195.06,195.05,0.03]
[1753117311244,59.73098094,195.06,195.05,0.03]
[1753117311957,23.14552302,195.06,195.05,0.03]
[1753117312155,33.73098094,195.06,195.05,0.03]
[1753117312569,35.32158094,195.06,195.05,0.03]
[1753117312746,66.01158094,195.06,195.04,0.03]
[1753117312953,85.11225792,195.05,195.04,0.03]
[1753117313163,56.69,195.02,195.01,0.1]
[1753117313369,104.86966927,195.02,195.01,0.1]
[1753117313670,122.37435324,195.02,195.01,0.1]
[1753117314355,127.50203245,195.02,195.01,0.1]
[1753117314556,126.9878211,195.02,195.01,0.1]
[1753117315060,96.2978211,195.02,195.01,0.1]
[1753117315263,96.81203245,195.02,195.01,0.1]
[1753117316104,96.81203245,195.02,194.97,0.1]
[1753117316105,26.0,194.98,194.97,0.1]
[1753117316265,73.66545792,194.98,194.97,0.1]
[1753117316443,79.51418907,194.98,194.97,0.1]
[1753117317862,96.29887304,194.98,194.97,0.1]
[1753117318460,96.81308439,194.98,194.97,0.1]
[1753117318668,86.22762647,194.98,194.97,0.1]
[1753117318864,96.81308439,194.98,194.97,0.1]
[1753117319049,100.9122132,194.98,194.97,0.1]
[1753117319368,248.7122132,194.98,194.97,0.1]
[1753117319575,248.19800185,194.98,194.97,0.1]
[1753117320156,280.40470185,194.98,194.97,1e-08]
[1753117320346,208.53557304,194.98,194.97,1e-08]
[1753117320672,235.03011512,194.98,194.97,1e-08]
[1753117320850,245.61557304,194.98,194.97,1e-08]
[1753117321047,244.89557304,194.98,194.97,1e-08]
[1753117321251,147.8,195.03,194.97,1e-08]
[1753117321449,10.58545792,194.99,194.97,1e-08]
[1753117321645,63.59421135,194.98,194.97,1e-08]
[1753117322058,65.63435324,194.98,194.97,1e-08]
[1753117322456,70.76308439,194.98,194.97,1e-08]
[1753117322666,26.0,194.95,194.86,0.71]
[1753117322874,10.58545792,194.9,194.86,0.71]
[1753117323062,37.59421135,194.89,194.86,5.84179365]
[1753117323253,37.59421135,194.89,194.86,5.13179365]
[1753117323605,37.59421135,194.89,194.84,16.4276176]
[1753117323774,37.59421135,194.89,194.85,11.29545792]
[1753117323975,37.59421135,194.89,194.85,10.58545792]
[1753117324188,37.08,194.89,194.86,0.71]
[1753117324381,37.08,194.89,194.87,10.58545792]
[1753117324680,37.08,194.89,194.85,15.71737217]
[1753117324858,37.59421135,194.89,194.85,15.71737217]
[1753117325061,37.59421135,194.89,194.86,0.71]
[1753117325366,37.59421135,194.89,194.86,11.29545792]
[1753117325559,37.59421135,194.89,194.85,5.13191425]
[1753117325560,37.08,194.89,194.87,0.71]
[1753117325876,37.08,194.89,194.88,0.71]
[1753117326078,88.5,194.92,194.88,11.29545792]
[1753117326280,17.45468397,194.98,194.91,10.58545792]
[1753117326281,89.01421135,194.97,194.91,10.58545792]
[1753117326579,125.58,194.96,194.93,15.71543469]
[1753117326758,0.51421135,194.95,194.93,5.12997677]
[1753117326956,37.08,194.94,194.93,5.12997677]
[1753117327381,37.08,194.94,194.93,5.83997677]
[1753117327762,37.08,194.94,194.93,0.71]
[1753117327970,37.08,194.94,194.93,5.84004668]
[1753117328599,37.08,194.94,194.93,5.13004668]
[1753117328889,37.08,194.94,194.9,5.13083632]
[1753117328890,48.33545792,194.94,194.9,5.13083632]
[1753117329184,37.08,194.93,194.91,0.71]
[1753117329384,37.08,194.93,194.92,10.58545792]
[1753117329687,37.08,194.93,194.92,11.29545792]
[1753117329874,37.08,194.93,194.9,5.13083632]
[1753117330053,0.51421135,194.92,194.89,5.13107796]
[1753117330253,37.08,194.91,194.89,5.13107796]
[1753117330479,37.08,194.91,194.9,16.42629424]
[1753117330866,37.08,194.91,194.9,15.71629424]
[1753117331192,0.51421135,194.95,194.9,29.25338505]
[1753117331362,37.08,194.94,194.93,10.58545792]
[1753117331560,37.08,194.94,194.93,11.29545792]
[1753117332164,37.08,194.94,194.93,0.71]
[1753117332557,37.08,194.94,194.89,0.71]
[1753117332762,37.08,194.94,194.91,10.58545792]
[1753117332971,37.08,194.94,194.91,11.29545792]
[1753117333274,0.51421135,194.93,194.91,11.29545792]
[1753117333467,37.08,194.92,194.91,11.29545792]
[1753117333786,37.08,194.92,194.91,10.58545792]
[1753117334083,37.08,194.92,194.91,11.29545792]
[1753117334389,0.06,194.98,194.91,11.29545792]
[1753117334590,37.08,194.97,194.93,5.13004668]
[1753117334773,37.08,194.97,194.95,10.58545792]
[1753117334973,0.51421135,194.96,194.93,15.7155046]
[1753117335174,37.08,194.95,194.93,5.13004668]
[1753117335763,0.51421135,194.94,194.91,10.58545792]
[1753117335963,37.06,194.93,194.89,0.71]
[1753117336190,0.51421135,194.92,194.9,10.58545792]
[1753117336391,37.06,194.91,194.89,11.29545792]
[1753117336770,37.06,194.91,194.9,11.29545792]
[1753117338374,37.06,194.91,194.9,0.71]
[1753117338696,37.06,194.91,194.9,16.42629424]
[1753117339069,0.51421135,194.95,194.9,16.42629424]
[1753117339392,37.06,194.95,194.94,10.58545792]
[1753117339898,0.06,194.98,194.94,11.29545792]
[1753117340082,0.06,194.98,194.95,0.71]
[1753117340404,0.06,194.98,194.97,10.58545792]
[1753117340593,37.06,195.04,195.03,10.58545792]
[1753117340896,37.06,195.04,195.03,16.42287421]
[1753117341396,0.06,195.06,195.03,16.42287421]
[1753117341597,0.06,195.06,195.05,10.58545792]
[1753117341969,0.06,195.06,195.05,11.29545792]
[1753117342901,0.06,195.06,195.05,16.42234846]
[1753117344892,0.06,195.06,195.05,22.76924846]
[1753117345782,0.06,195.06,195.05,39.55393243]
[1753117345976,37.06,195.12,195.06,16.78468397]
[1753117346193,89.01421135,195.17,195.11,10.58545792]
[1753117346377,88.5,195.16,195.13,10.58545792]
[1753117346582,125.54,195.16,195.14,10.58545792]
[1753117347285,125.54,195.16,195.14,15.70988753]
[1753117347488,125.54,195.16,195.14,16.41988753]
[1753117347675,0.2,195.18,195.15,11.29545792]
[1753117347975,0.2,195.18,195.16,10.58545792]
[1753117347976,37.04,195.17,195.16,10.58545792]
[1753117348174,37.04,195.17,195.16,11.29545792]
[1753117348396,0.2,195.18,195.16,11.29545792]
[1753117348601,0.2,195.18,195.17,11.29545792]
[1753117348792,0.2,195.18,195.13,0.51247886]
[1753117348793,0.2,195.18,195.13,5.12477662]
[1753117348996,0.51421135,195.17,195.14,15.70983086]
[1753117349372,0.06,195.16,195.14,11.29545792]
[1753117349572,0.06,195.16,195.14,10.58545792]
[1753117349776,0.06,195.16,195.15,11.29545792]
[1753117349998,0.06,195.16,195.15,10.58545792]
[1753117351085,0.06,195.16,195.15,15.7097213]
[1753117351321,0.06,195.16,195.15,16.3697213]
[1753117351902,0.2,195.18,195.15,33.15440527]
[1753117352112,0.2,195.18,195.17,27.37014189]
[1753117352287,0.2,195.18,195.17,27.88251571]
[1753117352486,0.2,195.18,195.17,28.54251571]
[1753117352683,1e-08,195.18,195.17,28.54251571]
[1753117352891,0.06,195.2,195.17,28.54251571]
[1753117353098,0.06,195.2,195.19,21.90789724]
[1753117353280,0.06,195.2,195.19,33.00567648]
[1753117353484,0.06,195.2,195.19,33.66567648]
[1753117355808,37.02,195.28,195.19,46.47370967]
[1753117356105,37.02,195.28,195.25,10.58545792]
[1753117356302,0.51421135,195.27,195.24,10.58545792]
[1753117356714,1.23421135,195.27,195.24,10.58545792]
[1753117357223,0.51421135,195.27,195.24,10.58545792]
[1753117357397,37.53421135,195.28,195.24,10.58545792]
[1753117358015,38.25421135,195.28,195.24,10.58545792]
[1753117358221,37.53421135,195.28,195.25,10.58545792]
[1753117358383,37.02,195.28,195.25,10.58545792]
[1753117358802,0.51421135,195.27,195.24,10.58545792]
[1753117359007,1.23421135,195.27,195.23,10.58545792]
[1753117359190,15.70735916,195.24,195.16,0.66]
[1753117359387,38.23421135,195.23,195.18,10.58545792]
[1753117359592,11.30545792,195.22,195.16,10.58545792]
[1753117359803,1.23421135,195.21,195.16,10.58545792]
[1753117359988,0.51421135,195.22,195.18,10.58545792]
[1753117361094,1.23421135,195.22,195.17,11.24545792]
[1753117361622,0.72,195.21,195.16,5.12382753]
[1753117361914,0.72,195.21,195.16,15.70928545]
[1753117362113,0.72,195.21,195.14,0.66]
[1753117362114,0.51421135,195.2,195.14,0.66]
[1753117362288,1.23421135,195.2,195.15,10.58545792]
[1753117362686,0.72,195.19,195.14,10.58545792]
[1753117362907,38.21421135,195.18,195.14,10.58545792]
[1753117363123,37.49421135,195.18,195.14,10.58545792]
[1753117364018,36.98,195.18,195.14,15.70998079]
[1753117364227,1.23421135,195.17,195.12,10.58545792]
[1753117364392,0.51421135,195.17,195.13,11.24545792]
[1753117364792,37.49421135,195.18,195.13,11.24545792]
[1753117365297,0.72,195.17,195.12,10.58545792]
[1753117365518,53.20322627,195.18,195.12,10.58545792]
[1753117365695,0.72,195.16,195.12,10.58545792]
[1753117365895,1.23421135,195.16,195.11,15.71077184]
[1753117366106,0.51421135,195.16,195.1,5.78555172]
[1753117366316,0.72,195.15,195.11,10.58545792]
[1753117366618,48.79966927,195.14,195.07,0.66]
[1753117366821,48.79966927,195.14,195.08,10.58545792]
[1753117367126,31.123557,195.18,195.08,10.58545792]
[1753117367127,36.98,195.18,195.13,10.58545792]
[1753117367415,36.98,195.18,195.15,10.58545792]
[1753117367615,0.51421135,195.17,195.14,10.58545792]
[1753117368425,0.51421135,195.17,195.13,10.58545792]
[1753117368725,37.49421135,195.18,195.13,10.58545792]
[1753117369098,38.21421135,195.18,195.14,10.58545792]
[1753117369404,0.51421135,195.2,195.17,10.58545792]
[1753117369710,62.98,195.2,195.18,11.24545792]
[1753117370106,62.98,195.2,195.18,10.58545792]
[1753117370725,0.6,195.23,195.19,11.24545792]
[1753117370902,36.98,195.24,195.22,10.58545792]
[1753117371098,0.72,195.23,195.19,10.58545792]
[1753117371295,0.51421135,195.24,195.2,10.58545792]
[1753117371507,11.81966927,195.26,195.2,10.58545792]
[1753117371800,0.06,195.24,195.2,11.24545792]
[1753117371995,0.06,195.24,195.23,10.58545792]
[1753117372516,0.06,195.24,195.23,11.24545792]
[1753117372713,0.06,195.24,195.23,16.36762152]
[1753117373023,0.06,195.24,195.23,10.58545792]
[1753117373206,0.06,195.24,195.22,10.58545792]
[1753117373518,0.06,195.24,195.21,5.78242673]
[1753117373724,0.06,195.24,195.23,10.58545792]
[1753117374104,0.06,195.24,195.23,11.24545792]
[1753117374798,0.06,195.24,195.23,10.58545792]
[1753117375006,0.06,195.24,195.21,5.12264094]
[1753117375212,0.06,195.24,195.2,0.66]
[1753117375213,0.06,195.24,195.2,10.58545792]
[1753117376150,0.06,195.24,195.22,10.58545792]
[1753117377001,0.06,195.24,195.22,15.70786651]
[1753117377204,0.06,195.24,195.23,11.24545792]
[1753117378412,0.06,195.24,195.23,0.66]
[1753117378617,0.06,195.24,195.23,10.58545792]
[1753117378927,0.06,195.24,195.2,17.44468397]
[1753117378928,0.06,195.24,195.22,10.58545792]
[1753117379126,0.06,195.24,195.21,10.58545792]
[1753117379333,0.06,195.24,195.18,0.66]
[1753117379503,10.58545792,195.21,195.16,10.58545792]
[1753117379705,0.72,195.2,195.16,10.58545792]
[1753117379927,0.51421135,195.2,195.13,5.15472375]
[1753117380128,10.58545792,195.18,195.13,0.03]
[1753117380420,26.51421135,195.2,195.13,0.03]
[1753117380421,16.94363343,195.17,195.13,0.03]
[1753117380623,1.23421135,195.17,195.13,0.03]
[1753117380821,0.51421135,195.17,195.13,0.03]
[1753117381014,11.09966927,195.17,195.13,0.03]
[1753117381207,10.58545792,195.15,195.13,0.03]
[1753117381414,11.09966927,195.14,195.13,0.03]
[1753117381619,11.81966927,195.14,195.13,0.03]
[1753117382020,17.96086927,195.14,195.13,0.03]
[1753117382334,39.87007922,195.14,195.13,0.03]
[1753117383013,29.2846213,195.14,195.13,0.03]
[1753117383220,49.08539525,195.14,195.13,0.03]
[1753117383521,37.81966927,195.14,195.13,0.03]
[1753117383731,26.51421135,195.14,195.13,0.03]
[1753117383930,26.0,195.14,195.13,0.03]
[1753117384233,37.30545792,195.14,195.13,0.03]
[1753117384924,36.58545792,195.14,195.13,0.03]
[1753117385122,42.4299839,195.14,195.13,0.03]
[1753117385321,31.84452598,195.14,195.13,0.03]
[1753117385518,37.30545792,195.14,195.13,0.03]
[1753117385722,37.81966927,195.14,195.13,0.03]
[1753117386221,37.09966927,195.14,195.13,0.03]
[1753117386629,26.0,195.14,195.13,0.03]
[1753117387449,26.0,195.14,195.13,0.74]
[1753117387739,0.51421135,195.17,195.13,10.61545792]
[1753117388115,0.51421135,195.17,195.13,0.03]
[1753117388718,26.0,195.16,195.13,0.03]
[1753117388945,0.51421135,195.18,195.13,11.32545792]
[1753117389135,26.0,195.15,195.13,0.03]
[1753117389448,10.58545792,195.17,195.13,0.03]
[1753117389817,0.51421135,195.18,195.13,0.03]
[1753117390018,0.51421135,195.18,195.13,11.32545792]
[1753117390545,99.08545792,195.2,195.14,16.4199839]
[1753117390843,11.09966927,195.19,195.13,0.03]
[1753117391053,11.09966927,195.19,195.13,10.61545792]
[1753117391516,11.09966927,195.19,195.13,0.03]
[1753117391517,26.0,195.17,195.13,0.03]
[1753117391727,0.51421135,195.16,195.13,0.03]
[1753117392049,11.81966927,195.16,195.13,0.03]
[1753117392213,0.51421135,195.16,195.13,0.03]
[1753117392418,42.94291747,195.19,195.13,11.32545792]
[1753117392936,10.58545792,195.18,195.13,0.03]
[1753117393116,0.51421135,195.17,195.13,0.03]
[1753117394136,1.23421135,195.17,195.13,0.03]
[1753117394656,0.51421135,195.17,195.13,11.32545792]
[1753117394966,26.0,195.17,195.16,10.58545792]
[1753117395163,89.07421135,195.2,195.16,11.29545792]
[1753117395374,89.07421135,195.2,195.16,10.58545792]
[1753117395539,89.79421135,195.2,195.16,10.58545792]
[1753117395739,11.30545792,195.19,195.13,10.61545792]
[1753117395961,26.0,195.17,195.13,10.61545792]
[1753117396244,0.51421135,195.16,195.13,0.03]
[1753117396838,11.30545792,195.15,195.13,0.03]
[1753117397042,11.09966927,195.14,195.13,0.03]
[1753117397357,11.81966927,195.14,195.13,0.03]
[1753117397739,0.51421135,195.14,195.13,0.03]
[1753117397963,0.51421135,195.15,195.13,0.03]
[1753117398263,11.30545792,195.14,195.13,0.03]
[1753117399052,28.09014189,195.14,195.13,0.03]
[1753117399938,5.84452598,195.14,195.13,0.03]
[1753117400139,5.12452598,195.14,195.13,0.03]
[1753117400337,7.16181135,195.15,195.13,0.03]
[1753117400338,37.09966927,195.15,195.13,0.03]
[1753117400562,0.51421135,195.15,195.13,0.03]
[1753117400949,26.0,195.14,195.13,0.03]
[1753117401149,0.51421135,195.16,195.13,0.03]
[1753117401366,11.09966927,195.16,195.13,0.03]
[1753117401662,26.0,195.14,195.13,0.03]
[1753117401868,26.51421135,195.14,195.13,0.03]
[1753117402069,6.35873733,195.14,195.13,0.03]
[1753117403157,1.23421135,195.14,195.13,0.03]
[1753117403555,6.35873733,195.14,195.13,0.03]
[1753117404271,0.51421135,195.14,195.13,0.03]
[1753117404454,26.0,195.14,195.13,0.03]
[1753117405045,89.01421135,195.16,195.13,11.32545792]
[1753117405243,89.01421135,195.19,195.15,10.58545792]
[1753117405443,89.01421135,195.19,195.15,11.29545792]
[1753117405743,11.30545792,195.18,195.13,0.03]
[1753117406046,0.51421135,195.17,195.13,0.03]
[1753117406266,37.30545792,195.16,195.13,0.03]
[1753117406455,1.23421135,195.15,195.13,0.03]
[1753117407046,0.51421135,195.15,195.13,0.03]
[1753117407267,0.51421135,195.17,195.14,11.29545792]
[1753117407467,88.5,195.19,195.14,10.58545792]
[1753117407468,89.01421135,195.19,195.14,10.58545792]
[1753117407651,89.01421135,195.19,195.16,10.58545792]
[1753117407972,0.06,195.2,195.18,10.58545792]
[1753117408170,0.06,195.2,195.19,5.83321327]
[1753117408377,0.06,195.2,195.19,16.41867119]
[1753117408681,0.06,195.2,195.19,11.29545792]
[1753117408872,0.06,195.2,195.16,10.58545792]
[1753117409348,0.72,195.19,195.14,10.58545792]
[1753117409542,1.23421135,195.18,195.13,15.74018497]
[1753117409979,0.51421135,195.18,195.14,11.29545792]
[1753117410360,0.51421135,195.18,195.14,16.41980498]
[1753117410566,0.51421135,195.19,195.14,16.41980498]
[1753117410871,36.58545792,195.17,195.13,0.03]
[1753117411080,11.81966927,195.16,195.13,0.03]
[1753117411261,1.23421135,195.16,195.13,0.03]
[1753117411754,11.81966927,195.16,195.13,0.03]
[1753117412363,0.51421135,195.16,195.13,0.03]
[1753117412573,0.51421135,195.17,195.13,11.27545792]
[1753117412893,0.57421135,195.2,195.15,10.58545792]
[1753117413055,0.57421135,195.2,195.16,0.66]
[1753117413263,16.28265334,195.2,195.15,10.58545792]
[1753117413486,17.00265334,195.2,195.15,10.58545792]
[1753117413794,16.28265334,195.2,195.15,10.58545792]
[1753117413965,11.30545792,195.19,195.13,0.03]
[1753117414159,0.51421135,195.18,195.13,0.03]
[1753117414382,1.23421135,195.18,195.13,10.61545792]
[1753117414561,1.23421135,195.18,195.13,11.27545792]
[1753117414962,1.23421135,195.18,195.13,0.69]
[1753117415189,1.23421135,195.18,195.13,11.27545792]
[1753117415392,16.94320642,195.18,195.13,0.69]
[1753117415704,11.30545792,195.17,195.13,0.03]
[1753117415862,36.58545792,195.14,195.13,0.03]
[1753117416404,42.4299839,195.14,195.13,0.03]
[1753117416699,37.30545792,195.14,195.13,0.03]
[1753117416867,37.81966927,195.14,195.13,0.03]
[1753117417365,26.51421135,195.14,195.13,0.03]
[1753117417799,0.51421135,195.14,195.13,0.69]
[1753117417973,88.5,195.17,195.14,0.03]
[1753117418163,89.01421135,195.17,195.14,10.61545792]
[1753117418363,89.01421135,195.17,195.14,11.27545792]
[1753117418588,88.5,195.17,195.14,0.69]
[1753117418772,0.51421135,195.16,195.14,0.03]
[1753117419086,1.23421135,195.16,195.14,0.03]
[1753117419584,0.51421135,195.16,195.14,0.03]
[1753117419887,89.01421135,195.17,195.14,5.81447545]
[1753117420062,89.01421135,195.17,195.14,0.03]
[1753117420866,36.94,195.16,195.14,0.03]
[1753117421290,37.45421135,195.16,195.14,0.03]
[1753117421478,36.94,195.16,195.14,0.69]
[1753117422090,36.94,195.16,195.14,11.27545792]
[1753117422788,36.94,195.16,195.14,16.39990473]
[1753117422997,88.5,195.17,195.15,11.24545792]
[1753117423200,125.44,195.17,195.16,11.24545792]
[1753117423369,125.44,195.17,195.15,10.58545792]
[1753117423570,125.44,195.17,195.16,10.58545792]
[1753117423884,125.44,195.17,195.16,11.24545792]
[1753117424489,36.94,195.17,195.16,11.24545792]
[1753117424689,36.94,195.17,195.16,16.36945873]
[1753117424873,36.94,195.17,195.16,11.24545792]
[1753117425681,36.94,195.17,195.16,16.36945873]
[1753117425873,36.92,195.19,195.16,16.36945873]
[1753117426079,36.92,195.19,195.18,10.58545792]
[1753117426389,36.92,195.19,195.14,0.03]
[1753117426390,37.64,195.19,195.14,0.03]
[1753117426598,15.70919619,195.17,195.14,0.03]
[1753117426786,10.58545792,195.15,195.14,0.03]
[1753117427299,0.72,195.15,195.14,0.03]
[1753117427994,48.01966927,195.16,195.14,0.03]
[1753117428196,37.43421135,195.16,195.14,0.03]
[1753117429879,37.43421135,195.16,195.14,11.27545792]
[1753117430080,36.92,195.16,195.15,11.24545792]
[1753117430580,26.06,195.2,195.15,11.24545792]
[1753117430581,0.06,195.2,195.15,11.24545792]
[1753117430792,36.92,195.19,195.16,5.12400081]
[1753117430973,0.06,195.2,195.18,10.58545792]
[1753117431168,36.98,195.2,195.19,10.58545792]
[1753117431469,36.98,195.2,195.19,11.24545792]
[1753117431693,0.06,195.2,195.19,11.24545792]
[1753117432809,0.06,195.2,195.19,16.36867119]
[1753117432974,0.06,195.2,195.15,0.66]
[1753117433177,0.06,195.2,195.19,10.58545792]
[1753117433729,0.06,195.2,195.19,0.66]
[1753117433874,0.06,195.2,195.19,11.24545792]
[1753117434075,0.06,195.2,195.19,0.66]
[1753117434575,0.06,195.2,195.18,10.58545792]
[1753117434899,0.06,195.2,195.19,16.36867119]
[1753117436619,0.06,195.2,195.19,5.78321327]
[1753117436804,0.06,195.2,195.19,16.36867119]
[1753117438989,1e-08,195.2,195.19,33.15335516]
[1753117439184,0.06,195.24,195.2,16.78468397]
[1753117439414,0.06,195.24,195.23,10.58545792]
[1753117439616,0.06,195.24,195.21,1.17226883]
[1753117439823,0.06,195.24,195.22,10.58545792]
[1753117440239,0.06,195.24,195.23,11.24545792]
[1753117440403,0.06,195.24,195.23,28.03014189]
[1753117440608,0.06,195.24,195.19,5.78321327]
[1753117440814,0.06,195.24,195.16,12.83997225]
[1753117440815,0.72,195.23,195.18,15.70890268]
[1753117441027,1.23421135,195.23,195.18,15.70890268]
[1753117441235,0.51421135,195.23,195.19,10.58545792]
[1753117441399,0.51421135,195.23,195.18,5.12344476]
[1753117441601,0.51421135,195.23,195.18,10.58545792]
[1753117441929,0.51421135,195.23,195.16,0.03]
[1753117441930,10.58545792,195.19,195.16,0.03]
[1753117442104,1.19421135,195.18,195.16,0.03]
[1753117442809,0.51421135,195.18,195.16,0.03]
[1753117442997,0.51421135,195.22,195.17,0.68]
[1753117443196,0.51421135,195.22,195.16,0.03]
[1753117443197,11.26545792,195.21,195.16,0.03]
[1753117443401,0.51421135,195.2,195.16,10.61545792]
[1753117443611,26.0,195.17,195.16,0.03]
[1753117443818,26.68,195.17,195.16,0.03]
[1753117444336,0.51421135,195.18,195.16,0.03]
[1753117444825,0.5,195.18,195.16,0.03]
[1753117445044,0.5,195.18,195.16,10.61545792]
[1753117445332,36.9,195.2,195.17,10.58545792]
[1753117445705,26.0,195.2,195.18,10.58545792]
[1753117445906,36.9,195.23,195.19,10.58545792]
[1753117446204,36.9,195.23,195.2,10.58545792]
[1753117446611,36.9,195.23,195.19,11.26545792]
[1753117446813,36.9,195.23,195.16,0.71]
[1753117447028,36.9,195.23,195.19,15.70861628]
[1753117447417,36.9,195.23,195.2,10.58545792]
[1753117448047,36.9,195.23,195.19,15.70861628]
[1753117448218,37.58,195.23,195.19,15.70861628]
[1753117448936,16.90222297,195.22,195.16,15.73926895]
[1753117449137,1.19421135,195.22,195.16,15.73926895]
[1753117449349,11.77966927,195.22,195.16,15.73926895]
[1753117449651,6.31665748,195.22,195.16,15.73926895]
[1753117449947,0.5,195.21,195.16,15.73926895]
[1753117450326,1.18,195.21,195.16,15.73926895]
[1753117450538,1.18,195.21,195.17,10.58545792]
[1753117450738,0.5,195.21,195.17,11.26545792]
[1753117451045,0.5,195.21,195.19,15.70863779]
[1753117451350,125.4,195.23,195.19,15.70863779]
[1753117451351,125.4,195.23,195.19,16.38863779]
[1753117451548,88.5,195.23,195.21,10.58545792]
[1753117451752,0.06,195.24,195.22,11.26545792]
[1753117451925,0.06,195.24,195.23,10.58545792]
[1753117452118,0.06,195.24,195.23,11.26545792]
[1753117453145,0.06,195.24,195.23,33.17230549]
[1753117454150,0.06,195.24,195.23,16.38762152]
[1753117455855,0.06,195.24,195.23,10.58545792]
[1753117456838,0.06,195.24,195.22,10.58545792]
[1753117457145,0.06,195.24,195.21,10.58545792]
[1753117457347,0.06,195.24,195.22,10.58545792]
[1753117457848,0.06,195.24,195.23,10.58545792]
[1753117458055,0.06,195.24,195.23,11.26545792]
[1753117459237,0.06,195.24,195.23,16.38762152]
[1753117459437,0.06,195.24,195.23,33.68452185]
[1753117461340,0.06,195.24,195.23,16.38762152]
[1753117462142,0.06,195.24,195.23,15.70762152]
[1753117464036,0.06,195.24,195.23,16.38762152]
[1753117464239,0.06,195.24,195.23,16.89983788]
[1753117464441,0.06,195.28,195.27,10.58545792]
[1753117464838,0.06,195.28,195.27,11.26545792]
[1753117465042,0.06,195.28,195.27,33.17125624]
[1753117465443,0.06,195.28,195.27,5.12111435]
[1753117465750,0.06,195.28,195.27,16.38657227]
[1753117465951,0.06,195.28,195.27,16.8986837]